[Event "EYCC Open-U16 2019"]
[Site "Bratislava"]
[Date "2019.08.04"]
[Round "3.42"]
[White "Mica, Marek"]
[Black "Ruchko, Denis"]
[Result "1/2-1/2"]
[ECO "D43"]
[WhiteElo "2222"]
[BlackElo "2002"]
[Annotator "NA"]
[PlyCount "85"]
[EventDate "2019.08.02"]
[EventType "swiss"]
[EventCountry "SVK"]
[SourceTitle "playchess.com"]
[Source "ChessBase"]
[SourceQuality "1"]
[TimeControl "40/5400+30:1800+30"]

1. d4 {[%emt 0:00:00]} d5 {[%emt 0:00:00]} 2. c4 {[%emt 0:00:00]} c6 {[%emt 0:00:00]} 3. Nc3 {[%emt 0:00:00]} Nf6 {[%emt 0:00:00]} 4. Nf3 {[%emt 0:00:05]} e6 {[%emt 0:00:00]} 5. Bg5 {[%emt 0:00:18]} h6 {[%emt 0:00:05]} 6. Bh4 {[%emt 0:01:34]} dxc4 {[%emt 0:00:06]} 7. e4 {[%emt 0:00:08]} g5 {[%emt 0:00:05]} 8. Bg3 {[%emt 0:00:05]} b5 {[%emt 0:00:05]} 9. Be2 {[%emt 0:00:05]} b4 {[%emt 0:00:25]} 10. Na4 {[%emt 0:02:53]} Nxe4 {[%emt 0:00:17]} 11. Bxc4 {[%emt 0:00:42]} Nxg3 {[%emt 0:08:16]} 12. hxg3 {[%emt 0:00:27]} Nd7 {[%emt 0:00:51]} 13. O-O {[%emt 0:01:37]} Bg7 {[%emt 0:15:21]} 14. Qb3 {[%emt 0:04:44]} Qe7 {[%emt 0:06:22]} 15. Rfe1 {[%emt 0:02:21]} O-O {[%emt 0:05:21]} 16. Rac1 {[%emt 0:03:18]} Bb7 {[%emt 0:11:33]} 17. Nc5 {[%emt 0:07:44]} Nxc5 {[%emt 0:05:38]} 18. Qxb4 {[%emt 0:01:36]} Rfb8 {[%emt 0:08:40]} 19. Bb3 {[%emt 0:02:45]} Ba6 {[%emt 0:07:35]} 20. Qxc5 {[%emt 0:00:14]} Qxc5 {[%emt 0:01:06]} 21. Rxc5 {[%emt 0:00:19]} Rb4 {[%emt 0:01:15]} 22. Rxc6 {[%emt 0:21:41]} Bb7 {[%emt 0:02:56]} 23. Rc7 {[%emt 0:01:18]} Bxf3 {[%emt 0:05:16]} 24. gxf3 {[%emt 0:00:12]} Rxd4 {[%emt 0:01:07]} 25. Re2 {[%emt 0:01:43]} Rb4 {[%emt 0:06:40]} 26. Rd2 {[%emt 0:01:45]} Bd4 {[%emt 0:01:13]} 27. Rd7 {[%emt 0:01:51]} Be5 {[%emt 0:00:07]} 28. Rd8+ {[%emt 0:09:08]} Rxd8 {[%emt 0:00:09]} 29. Rxd8+ {[%emt 0:00:07]} Kg7 {[%emt 0:00:14]} 30. Rd7 {[%emt 0:00:08]} Kf6 {[%emt 0:00:40]} 31. Rxa7 {[%emt 0:00:30]} Bxb2 {[%emt 0:00:06]} 32. Kg2 {[%emt 0:02:54]} Rd4 {[%emt 0:01:50]} 33. Ba4 {[%emt 0:06:08]} Ke5 {[%emt 0:05:27]} 34. Bb5 {[%emt 0:04:14]} f6 {[%emt 0:01:20]} 35. Ra6 {[%emt 0:12:02]} Rd6 {[%emt 0:05:49]} 36. a4 {[%emt 0:04:21]} Rxa6 {[%emt 0:01:17]} 37. Bxa6 {[%emt 0:00:07]} Bc3 {[%emt 0:00:03]} 38. Bc8 {[%emt 0:00:09]} Kd5 {[%emt 0:00:43]} 39. Kh3 {[%emt 0:00:33]} f5 {[%emt 0:00:28]} 40. g4 {[%emt 0:00:00]} Ke5 {[%emt 0:00:00]} 41. Kg2 {[%emt 0:01:36]} Ba5 {[%emt 0:01:28]} 42. Kf1 {[%emt 0:00:21]} Bb6 {[%emt 0:00:38]} 43. Ke2 {[%emt 0:00:28]} 1/2-1/2

[Event "EYCC Open-U16 2019"]
[Site "Bratislava"]
[Date "2019.08.04"]
[Round "3.43"]
[White "Jirousek, Jan"]
[Black "Iliaguev, Daniel"]
[Result "0-1"]
[ECO "A48"]
[WhiteElo "1924"]
[BlackElo "2053"]
[Annotator "NA"]
[PlyCount "96"]
[EventDate "2019.08.02"]
[EventType "swiss"]
[EventCountry "SVK"]
[SourceTitle "playchess.com"]
[Source "ChessBase"]
[SourceQuality "1"]
[TimeControl "40/5400+30:1800+30"]

1. d4 Nf6 {[%emt 0:00:00]} 2. Nf3 {[%emt 0:00:00]} g6 {[%emt 0:00:07]} 3. Nc3 {[%emt 0:00:00]} d5 {[%emt 0:03:14]} 4. Bf4 {[%emt 0:00:06]} Bg7 5. e3 {[%emt 0:00:18]} O-O {[%emt 0:01:58]} 6. Be2 c5 {[%emt 0:15:27]} 7. Ne5 {[%emt 0:01:10]} Nc6 {[%emt 0:02:31]} 8. O-O {[%emt 0:02:27]} Bf5 {[%emt 0:12:10]} 9. Nxc6 {[%emt 0:07:07]} bxc6 {[%emt 0:00:10]} 10. dxc5 {[%emt 0:01:13]} Nd7 11. Bd3 {[%emt 0:07:15]} Bxd3 {[%emt 0:04:09]} 12. cxd3 {[%emt 0:00:42]} e5 {[%emt 0:00:07]} 13. Bg3 {[%emt 0:00:13]} Nxc5 14. Na4 {[%emt 0:12:49]} Ne6 {[%emt 0:03:56]} 15. Rc1 Rc8 {[%emt 0:23:25]} 16. Nc5 {[%emt 0:09:26]} Nxc5 {[%emt 0:01:06]} 17. Rxc5 {[%emt 0:00:02]} f5 18. f3 {[%emt 0:07:19]} Re8 {[%emt 0:08:20]} 19. Bf2 {[%emt 0:07:35]} Bf8 {[%emt 0:03:46]} 20. Rc1 {[%emt 0:02:42]} e4 {[%emt 0:00:17]} 21. fxe4 {[%emt 0:03:09]} fxe4 {[%emt 0:00:02]} 22. d4 {[%emt 0:02:22]} Qb6 {[%emt 0:02:43]} 23. b3 {[%emt 0:06:44]} Bd6 {[%emt 0:01:28]} 24. Qd2 {[%emt 0:02:27]} Qc7 {[%emt 0:01:35]} 25. h3 {[%emt 0:00:57]} Qd7 {[%emt 0:03:01]} 26. Rfd1 {[%emt 0:02:42]} Bb8 {[%emt 0:00:37]} 27. Kh1 {[%emt 0:04:50]} Rf8 {[%emt 0:01:06]} 28. Bg1 {[%emt 0:01:27]} Qd6 {[%emt 0:03:23]} 29. Rf1 {[%emt 0:04:11]} h5 {[%emt 0:00:05]} 30. Rxf8+ {[%emt 0:03:47]} Rxf8 {[%emt 0:00:03]} 31. Qe2 {[%emt 0:01:21]} Bc7 {[%emt 0:04:12]} 32. Qc2 {[%emt 0:04:20]} Rf6 {[%emt 0:00:38]} 33. Qc5 {[%emt 0:01:40]} Qg3 {[%emt 0:04:18]} 34. Qc2 {[%emt 0:03:32]} g5 {[%emt 0:01:31]} 35. Qe2 {[%emt 0:01:31]} g4 {[%emt 0:00:08]} 36. Rf1 {[%emt 0:01:47]} Rxf1 {[%emt 0:00:18]} 37. Qxf1 {[%emt 0:00:02]} gxh3 {[%emt 0:00:09]} 38. gxh3 {[%emt 0:00:39]} Qf3+ {[%emt 0:00:56]} 39. Qxf3 {[%emt 0:00:31]} exf3 {[%emt 0:00:02]} 40. Bf2 {[%emt 0:00:00]} Kf7 {[%emt 0:00:00]} 41. Kg1 {[%emt 0:04:45]} Ke6 {[%emt 0:01:54]} 42. Bh4 {[%emt 0:05:29]} Kf5 {[%emt 0:01:20]} 43. Kf2 {[%emt 0:00:16]} Ke4 {[%emt 0:00:07]} 44. Be7 {[%emt 0:01:03]} Ba5 {[%emt 0:04:39]} 45. b4 {[%emt 0:01:34]} Bc7 {[%emt 0:00:02]} 46. a4 {[%emt 0:02:57]} a6 {[%emt 0:01:04]} 47. h4 {[%emt 0:04:02]} Bh2 {[%emt 0:01:47]} 48. Bc5 {[%emt 0:00:50]} Bg3+ {[%emt 0:06:25]} 0-1

[Event "EYCC Open-U16 2019"]
[Site "Bratislava"]
[Date "2019.08.04"]
[Round "3.44"]
[White "Kasioumis, Vasilios"]
[Black "Dixa, Oskar"]
[Result "1-0"]
[ECO "B23"]
[WhiteElo "2015"]
[BlackElo "1973"]
[Annotator "NA"]
[PlyCount "55"]
[EventDate "2019.08.02"]
[EventType "swiss"]
[EventCountry "SVK"]
[SourceTitle "playchess.com"]
[Source "ChessBase"]
[SourceQuality "1"]
[TimeControl "40/5400+30:1800+30"]

1. e4 {[%emt 0:00:00]} c5 {[%emt 0:00:00]} 2. Nc3 {[%emt 0:00:00]} a6 {[%emt 0:00:03]} 3. Nge2 {[%emt 0:00:00]} b5 {[%emt 0:02:03]} 4. d4 {[%emt 0:02:06]} e6 {[%emt 0:01:26]} 5. d5 {[%emt 0:01:32]} Bb7 {[%emt 0:01:47]} 6. g3 {[%emt 0:14:39]} Nf6 {[%emt 0:05:06]} 7. Bg2 {[%emt 0:00:07]} d6 {[%emt 0:01:54]} 8. O-O {[%emt 0:01:12]} e5 {[%emt 0:00:16]} 9. b3 {[%emt 0:20:28]} Nbd7 {[%emt 0:02:58]} 10. Nb1 {[%emt 0:04:26]} Nb6 {[%emt 0:07:00]} 11. c4 {[%emt 0:01:16]} Qd7 {[%emt 0:01:11]} 12. Nd2 {[%emt 0:00:32]} Be7 {[%emt 0:15:44]} 13. Qc2 {[%emt 0:06:57]} Qc7 {[%emt 0:08:46]} 14. Bb2 {[%emt 0:07:59]} b4 {[%emt 0:05:39]} 15. Rae1 {[%emt 0:03:18]} a5 {[%emt 0:01:00]} 16. f4 {[%emt 0:02:10]} Nfd7 {[%emt 0:00:09]} 17. Nc1 {[%emt 0:05:47]} a4 {[%emt 0:03:00]} 18. Nd3 {[%emt 0:01:31]} a3 {[%emt 0:00:15]} 19. Bc1 {[%emt 0:00:08]} Bf6 {[%emt 0:00:44]} 20. Nf3 {[%emt 0:01:41]} h6 {[%emt 0:21:10]} 21. fxe5 {[%emt 0:03:17]} dxe5 {[%emt 0:01:23]} 22. Be3 {[%emt 0:02:11]} O-O {[%emt 0:03:48]} 23. Qf2 {[%emt 0:07:43]} Be7 {[%emt 0:02:33]} 24. Bh3 {[%emt 0:00:24]} Ra5 {[%emt 0:07:26]} 25. Bf5 {[%emt 0:00:44]} Bd6 {[%emt 0:01:28]} 26. Qd2 {[%emt 0:00:06]} Nb8 {[%emt 0:01:54]} 27. Bxh6 {[%emt 0:00:50]} Bc8 {[%emt 0:01:57]} 28. Bxg7 {[%emt 0:00:54]} 1-0

[Event "EYCC Open-U16 2019"]
[Site "Bratislava"]
[Date "2019.08.04"]
[Round "3.45"]
[White "Grutter, Tim"]
[Black "Antal, Jakub"]
[Result "1/2-1/2"]
[ECO "B36"]
[WhiteElo "2091"]
[BlackElo "1963"]
[Annotator "NA"]
[PlyCount "215"]
[EventDate "2019.08.02"]
[EventType "swiss"]
[EventCountry "SVK"]
[SourceTitle "playchess.com"]
[Source "ChessBase"]
[SourceQuality "1"]
[TimeControl "40/5400+30:1800+30"]

1. e4 {[%emt 0:00:00]} c5 {[%emt 0:00:00]} 2. Nf3 {[%emt 0:00:00]} Nc6 {[%emt 0:00:11]} 3. d4 {[%emt 0:00:06]} cxd4 {[%emt 0:00:07]} 4. Nxd4 {[%emt 0:00:05]} g6 {[%emt 0:00:19]} 5. c4 {[%emt 0:00:13]} Nf6 {[%emt 0:01:49]} 6. Nc3 {[%emt 0:00:21]} d6 {[%emt 0:00:33]} 7. Be2 {[%emt 0:01:41]} Nxd4 {[%emt 0:01:18]} 8. Qxd4 {[%emt 0:00:11]} Bg7 {[%emt 0:00:11]} 9. Be3 {[%emt 0:09:10]} O-O {[%emt 0:00:23]} 10. Qd2 {[%emt 0:00:26]} a5 {[%emt 0:03:51]} 11. O-O {[%emt 0:05:32]} a4 {[%emt 0:11:31]} 12. f3 {[%emt 0:04:33]} Qa5 {[%emt 0:07:56]} 13. Rac1 {[%emt 0:03:55]} Be6 {[%emt 0:02:28]} 14. Nd5 {[%emt 0:05:25]} Qxd2 {[%emt 0:03:54]} 15. Nxe7+ {[%emt 0:02:07]} Kh8 {[%emt 0:00:09]} 16. Bxd2 {[%emt 0:00:05]} Rfe8 {[%emt 0:00:15]} 17. Nd5 {[%emt 0:00:50]} Nxd5 {[%emt 0:00:18]} 18. cxd5 {[%emt 0:00:08]} Bxd5 {[%emt 0:00:41]} 19. Bb5 {[%emt 0:01:24]} Re5 {[%emt 0:00:36]} 20. Bc3 {[%emt 0:02:29]} Bxa2 {[%emt 0:03:12]} 21. Bxe5 {[%emt 0:00:11]} Bxe5 {[%emt 0:00:07]} 22. Rc2 {[%emt 0:04:38]} Ra5 {[%emt 0:03:48]} 23. Bd3 {[%emt 0:09:49]} b5 {[%emt 0:12:03]} 24. f4 {[%emt 0:08:21]} Bd4+ {[%emt 0:05:47]} 25. Kh1 {[%emt 0:00:06]} Bb3 {[%emt 0:11:09]} 26. Rd2 {[%emt 0:00:18]} Bf6 {[%emt 0:05:21]} 27. Bb1 {[%emt 0:15:53]} b4 {[%emt 0:05:01]} 28. Rf3 {[%emt 0:03:28]} Rc5 {[%emt 0:06:54]} 29. Kg1 {[%emt 0:04:44]} a3 {[%emt 0:13:34]} 30. bxa3 {[%emt 0:04:01]} Rc1+ {[%emt 0:00:16]} 31. Rf1 {[%emt 0:00:28]} Rxf1+ {[%emt 0:00:17]} 32. Kxf1 {[%emt 0:00:05]} bxa3 {[%emt 0:00:29]} 33. e5 {[%emt 0:07:46]} dxe5 {[%emt 0:01:15]} 34. Ba2 {[%emt 0:00:06]} Bxa2 {[%emt 0:00:36]} 35. Rxa2 {[%emt 0:00:01]} exf4 {[%emt 0:00:37]} 36. Rxa3 {[%emt 0:00:18]} Kg7 {[%emt 0:00:24]} 37. Kf2 {[%emt 0:00:47]} Be5 {[%emt 0:00:19]} 38. Ra5 {[%emt 0:01:17]} Bd6 {[%emt 0:00:32]} 39. Rd5 {[%emt 0:00:15]} Bb8 {[%emt 0:00:32]} 40. Rd7 {[%emt 0:00:00]} h6 {[%emt 0:00:00]} 41. Kf3 {[%emt 0:02:07]} g5 {[%emt 0:09:27]} 42. h3 {[%emt 0:01:56]} Kg6 {[%emt 0:02:52]} 43. Ke4 {[%emt 0:00:51]} f6 {[%emt 0:00:43]} 44. Kd5 {[%emt 0:02:37]} Be5 {[%emt 0:02:04]} 45. Ke6 {[%emt 0:00:35]} Kh5 {[%emt 0:04:29]} 46. Kf5 {[%emt 0:04:39]} Bc3 {[%emt 0:03:10]} 47. h4 {[%emt 0:08:09]} g4 {[%emt 0:10:03]} 48. Rg7 {[%emt 0:06:05]} f3 {[%emt 0:01:13]} 49. Rxg4 {[%emt 0:00:58]} fxg2 {[%emt 0:00:31]} 50. Rxg2 {[%emt 0:00:06]} Kxh4 {[%emt 0:00:39]} 51. Rh2+ {[%emt 0:04:38]} Kg3 {[%emt 0:00:07]} 52. Rxh6 {[%emt 0:00:01]} Be5 {[%emt 0:00:19]} 53. Ke4 {[%emt 0:01:27]} Kf2 {[%emt 0:00:34]} 54. Rg6 {[%emt 0:01:03]} Ba1 {[%emt 0:00:54]} 55. Rg8 {[%emt 0:00:27]} Be5 {[%emt 0:00:15]} 56. Ra8 {[%emt 0:00:53]} Kg3 {[%emt 0:00:29]} 57. Rd8 {[%emt 0:01:33]} Ba1 {[%emt 0:00:54]} 58. Rd3+ {[%emt 0:01:29]} Kf2 {[%emt 0:00:39]} 59. Rf3+ {[%emt 0:00:42]} Kg2 {[%emt 0:00:31]} 60. Kf4 {[%emt 0:00:21]} Be5+ {[%emt 0:00:17]} 61. Kg4 {[%emt 0:00:09]} Kh2 {[%emt 0:00:40]} 62. Rf2+ {[%emt 0:00:19]} Kh1 {[%emt 0:00:22]} 63. Kf3 {[%emt 0:00:53]} Kg1 {[%emt 0:00:29]} 64. Rd2 {[%emt 0:00:33]} Kh1 {[%emt 0:00:26]} 65. Rg2 {[%emt 0:00:48]} Bd4 {[%emt 0:00:14]} 66. Kg3 {[%emt 0:00:18]} Bc3 {[%emt 0:00:50]} 67. Kh3 {[%emt 0:00:30]} Be5 {[%emt 0:00:59]} 68. Rg4 {[%emt 0:00:07]} Bh2 {[%emt 0:00:32]} 69. Rb4 {[%emt 0:00:51]} f5 {[%emt 0:00:26]} 70. Rb1+ {[%emt 0:00:35]} Bg1 {[%emt 0:00:06]} 71. Rf1 {[%emt 0:01:39]} f4 {[%emt 0:00:07]} 72. Rxf4 {[%emt 0:00:06]} Ba7 {[%emt 0:00:05]} 73. Ra4 {[%emt 0:00:38]} Bb6 {[%emt 0:00:22]} 74. Rb4 {[%emt 0:00:41]} Ba7 {[%emt 0:00:17]} 75. Kg3 {[%emt 0:00:21]} Bc5 {[%emt 0:00:52]} 76. Rc4 {[%emt 0:00:54]} Bb6 {[%emt 0:00:31]} 77. Rh4+ {[%emt 0:00:54]} Kg1 {[%emt 0:00:04]} 78. Rb4 {[%emt 0:00:55]} Bf2+ {[%emt 0:00:42]} 79. Kf3 {[%emt 0:00:15]} Bc5 {[%emt 0:00:26]} 80. Rg4+ {[%emt 0:00:34]} Kh1 {[%emt 0:00:29]} 81. Rg2 {[%emt 0:00:41]} Bb6 {[%emt 0:00:20]} 82. Kg3 {[%emt 0:00:12]} Bc7+ {[%emt 0:00:28]} 83. Kf2 {[%emt 0:00:07]} Bb6+ {[%emt 0:00:22]} 84. Kf1 {[%emt 0:00:05]} Bc7 {[%emt 0:02:11]} 85. Rc2 {[%emt 0:00:52]} Bd6 {[%emt 0:00:25]} 86. Rf2 {[%emt 0:00:29]} Bg3 {[%emt 0:00:27]} 87. Rf7 {[%emt 0:00:31]} Bd6 {[%emt 0:00:30]} 88. Kf2 {[%emt 0:00:52]} Bc5+ {[%emt 0:00:29]} 89. Kg3 {[%emt 0:00:05]} Bd6+ {[%emt 0:00:25]} 90. Kh3 {[%emt 0:00:18]} Bc5 {[%emt 0:00:29]} 91. Rg7 {[%emt 0:00:34]} Bd4 {[%emt 0:00:39]} 92. Rg2 {[%emt 0:00:09]} Ba7 {[%emt 0:00:47]} 93. Rh2+ {[%emt 0:00:32]} Kg1 {[%emt 0:00:06]} 94. Ra2 {[%emt 0:00:04]} Bd4 {[%emt 0:00:45]} 95. Rd2 {[%emt 0:00:04]} Bb6 {[%emt 0:00:32]} 96. Rd1+ {[%emt 0:00:27]} Kf2 {[%emt 0:00:07]} 97. Rd6 {[%emt 0:00:19]} Be3 {[%emt 0:00:23]} 98. Rf6+ {[%emt 0:00:16]} Kg1 {[%emt 0:00:26]} 99. Re6 {[%emt 0:00:04]} Bf2 {[%emt 0:00:33]} 100. Rd6 {[%emt 0:00:28]} Kh1 {[%emt 0:00:12]} 101. Rh6 {[%emt 0:00:43]} Be3 {[%emt 0:00:18]} 102. Rh7 {[%emt 0:00:05]} Bc5 {[%emt 0:00:28]} 103. Rh5 {[%emt 0:00:43]} Bb6 {[%emt 0:00:27]} 104. Kg3+ {[%emt 0:00:20]} Kg1 {[%emt 0:00:11]} 105. Rb5 {[%emt 0:00:08]} Bf2+ {[%emt 0:00:55]} 106. Kh3 {[%emt 0:00:07]} Kh1 {[%emt 0:00:12]} 107. Rb1+ {[%emt 0:00:05]} Bg1 {[%emt 0:00:07]} 108. Ra1 {[%emt 0:00:03]} 1/2-1/2

[Event "EYCC Open-U16 2019"]
[Site "Bratislava"]
[Date "2019.08.04"]
[Round "3.46"]
[White "Viczencz, Peter"]
[Black "Magold, Victor"]
[Result "1-0"]
[ECO "B85"]
[WhiteElo "2014"]
[BlackElo "1962"]
[Annotator "NA"]
[PlyCount "95"]
[EventDate "2019.08.02"]
[EventType "swiss"]
[EventCountry "SVK"]
[SourceTitle "playchess.com"]
[Source "ChessBase"]
[SourceQuality "1"]
[TimeControl "40/5400+30:1800+30"]

1. e4 {[%emt 0:00:00]} c5 {[%emt 0:00:21]} 2. Nf3 {[%emt 0:00:00]} e6 {[%emt 0:00:30]} 3. d4 {[%emt 0:00:12]} cxd4 {[%emt 0:00:27]} 4. Nxd4 {[%emt 0:00:11]} Nf6 {[%emt 0:01:14]} 5. Nc3 {[%emt 0:00:17]} Nc6 {[%emt 0:01:37]} 6. f4 {[%emt 0:04:56]} d6 {[%emt 0:07:32]} 7. Be3 {[%emt 0:05:47]} Qc7 {[%emt 0:02:40]} 8. Be2 {[%emt 0:03:20]} a6 {[%emt 0:01:17]} 9. O-O {[%emt 0:00:36]} Be7 {[%emt 0:00:36]} 10. a4 {[%emt 0:03:08]} O-O {[%emt 0:00:39]} 11. g4 Nd7 12. g5 {[%emt 0:13:34]} Re8 {[%emt 0:20:45]} 13. Qe1 {[%emt 0:12:14]} g6 {[%emt 0:14:27]} 14. Qh4 {[%emt 0:02:40]} Bf8 {[%emt 0:00:30]} 15. Rf3 {[%emt 0:06:11]} Bg7 {[%emt 0:00:40]} 16. Rd1 {[%emt 0:02:25]} Nf8 {[%emt 0:15:01]} 17. Rh3 {[%emt 0:04:06]} Nxd4 {[%emt 0:02:48]} 18. Bxd4 {[%emt 0:00:28]} e5 {[%emt 0:06:39]} 19. f5 {[%emt 0:21:48]} exd4 {[%emt 0:02:44]} 20. Nd5 {[%emt 0:00:14]} Qd8 {[%emt 0:12:54]} 21. Bc4 {[%emt 0:01:42]} b5 {[%emt 0:05:34]} 22. Bb3 {[%emt 0:03:20]} bxa4 {[%emt 0:00:47]} 23. Bc4 {[%emt 0:01:40]} h6 {[%emt 0:00:54]} 24. Nf6+ {[%emt 0:02:28]} Bxf6 {[%emt 0:00:28]} 25. gxf6 {[%emt 0:04:09]} Rxe4 {[%emt 0:00:51]} 26. fxg6 {[%emt 0:00:49]} d5 {[%emt 0:00:33]} 27. Qxh6 {[%emt 0:01:28]} Rg4+ {[%emt 0:00:21]} 28. Kh1 {[%emt 0:00:15]} Qxf6 {[%emt 0:00:09]} 29. gxf7+ {[%emt 0:00:17]} Kxf7 {[%emt 0:00:13]} 30. Rf1 {[%emt 0:01:19]} Bf5 {[%emt 0:01:10]} 31. Bxd5+ {[%emt 0:00:11]} Ke7 {[%emt 0:00:30]} 32. Qxf6+ {[%emt 0:00:23]} Kxf6 {[%emt 0:00:03]} 33. Bxa8 {[%emt 0:00:26]} Ne6 {[%emt 0:01:00]} 34. Rhf3 {[%emt 0:00:50]} Ng7 {[%emt 0:00:12]} 35. Rf4 {[%emt 0:01:11]} Rxf4 {[%emt 0:00:45]} 36. Rxf4 {[%emt 0:00:07]} Ke5 {[%emt 0:00:02]} 37. Rf2 {[%emt 0:00:14]} Ne6 {[%emt 0:00:34]} 38. Kg2 {[%emt 0:01:40]} Nc5 {[%emt 0:00:49]} 39. Kf3 {[%emt 0:01:23]} Bg6 {[%emt 0:00:43]} 40. Kg4 {[%emt 0:00:00]} Ne6 41. Re2+ {[%emt 0:03:44]} Kf6 {[%emt 0:01:35]} 42. Be4 {[%emt 0:01:29]} Bh5+ {[%emt 0:00:08]} 43. Kxh5 {[%emt 0:00:10]} Nf4+ {[%emt 0:00:05]} 44. Kg4 {[%emt 0:00:12]} Nxe2 {[%emt 0:00:03]} 45. Bd3 {[%emt 0:00:21]} Nc1 {[%emt 0:00:17]} 46. Kf4 {[%emt 0:00:17]} Na2 {[%emt 0:01:05]} 47. Ke4 {[%emt 0:00:14]} Nb4 {[%emt 0:02:58]} 48. Kxd4 {[%emt 0:00:17]} 1-0

[Event "EYCC Open-U16 2019"]
[Site "Bratislava"]
[Date "2019.08.04"]
[Round "3.47"]
[White "Nagy, Ladislav"]
[Black "Maravic, Ivan"]
[Result "1/2-1/2"]
[ECO "C24"]
[WhiteElo "2061"]
[BlackElo "1934"]
[Annotator "NA"]
[PlyCount "83"]
[EventDate "2019.08.02"]
[EventType "swiss"]
[EventCountry "SVK"]
[SourceTitle "playchess.com"]
[Source "ChessBase"]
[SourceQuality "1"]
[TimeControl "40/5400+30:1800+30"]

1. e4 {[%emt 0:00:00]} e5 {[%emt 0:00:15]} 2. Bc4 {[%emt 0:00:20]} Nf6 {[%emt 0:01:28]} 3. d3 {[%emt 0:01:01]} c6 {[%emt 0:04:59]} 4. Nf3 {[%emt 0:01:39]} d5 {[%emt 0:02:45]} 5. Bb3 {[%emt 0:01:10]} Qc7 {[%emt 0:15:17]} 6. Nc3 {[%emt 0:04:41]} Be6 {[%emt 0:07:19]} 7. O-O {[%emt 0:07:35]} Bd6 {[%emt 0:03:05]} 8. exd5 {[%emt 0:09:03]} Nxd5 {[%emt 0:03:54]} 9. Ng5 {[%emt 0:04:10]} Nxc3 {[%emt 0:04:30]} 10. Nxe6 {[%emt 0:01:53]} Nxd1 {[%emt 0:01:23]} 11. Nxc7+ {[%emt 0:00:12]} Bxc7 {[%emt 0:00:06]} 12. Rxd1 {[%emt 0:00:12]} O-O {[%emt 0:02:34]} 13. Be3 {[%emt 0:03:08]} Nd7 {[%emt 0:03:43]} 14. d4 {[%emt 0:03:16]} Nf6 {[%emt 0:04:50]} 15. d5 {[%emt 0:08:39]} Nxd5 {[%emt 0:02:23]} 16. Bxd5 {[%emt 0:00:07]} cxd5 {[%emt 0:00:05]} 17. Rxd5 {[%emt 0:00:06]} a6 {[%emt 0:10:51]} 18. Rd7 {[%emt 0:04:09]} Rac8 {[%emt 0:01:14]} 19. Rad1 {[%emt 0:01:59]} Rfd8 {[%emt 0:01:13]} 20. Kf1 {[%emt 0:01:43]} b6 {[%emt 0:03:57]} 21. Ke2 {[%emt 0:02:39]} Rxd7 {[%emt 0:01:35]} 22. Rxd7 {[%emt 0:00:09]} Kf8 {[%emt 0:02:08]} 23. c4 {[%emt 0:05:54]} Ke8 {[%emt 0:00:49]} 24. Rd3 {[%emt 0:01:13]} Ke7 {[%emt 0:02:11]} 25. Ra3 {[%emt 0:04:40]} a5 {[%emt 0:01:43]} 26. Rb3 {[%emt 0:01:41]} Rb8 {[%emt 0:04:16]} 27. Rb5 {[%emt 0:02:45]} Kd6 {[%emt 0:01:08]} 28. a4 {[%emt 0:03:30]} Kc6 {[%emt 0:01:07]} 29. Bd2 {[%emt 0:01:20]} Rd8 {[%emt 0:02:55]} 30. h3 {[%emt 0:06:04]} Rd4 {[%emt 0:04:11]} 31. b3 {[%emt 0:00:30]} Rd8 {[%emt 0:02:47]} 32. Be3 {[%emt 0:01:30]} Rb8 {[%emt 0:01:46]} 33. Kd3 {[%emt 0:01:52]} f5 {[%emt 0:00:49]} 34. f3 {[%emt 0:02:28]} Rd8+ {[%emt 0:00:31]} 35. Kc2 {[%emt 0:02:02]} Re8 {[%emt 0:01:26]} 36. Kc3 {[%emt 0:03:58]} Re6 {[%emt 0:00:53]} 37. c5 {[%emt 0:01:37]} bxc5 {[%emt 0:00:26]} 38. Rxc5+ {[%emt 0:00:38]} Kd6 {[%emt 0:00:26]} 39. Kc4 {[%emt 0:01:29]} Rg6 {[%emt 0:01:21]} 40. g4 {[%emt 0:00:00]} fxg4 {[%emt 0:00:00]} 41. fxg4 {[%emt 0:11:24]} Rf6 {[%emt 0:06:18]} 42. Rd5+ {[%emt 0:05:46]} 1/2-1/2

[Event "EYCC Open-U16 2019"]
[Site "Bratislava"]
[Date "2019.08.04"]
[Round "3.48"]
[White "Velkovski, Kristijan"]
[Black "Ampelakiotis, Stavros"]
[Result "1-0"]
[ECO "B30"]
[WhiteElo "1953"]
[BlackElo "2080"]
[Annotator "NA"]
[PlyCount "71"]
[EventDate "2019.08.02"]
[EventType "swiss"]
[EventCountry "SVK"]
[SourceTitle "playchess.com"]
[Source "ChessBase"]
[SourceQuality "1"]
[TimeControl "40/5400+30:1800+30"]

1. e4 {[%emt 0:00:00]} c5 {[%emt 0:00:00]} 2. Nf3 {[%emt 0:00:00]} Nc6 {[%emt 0:00:00]} 3. Bb5 {[%emt 0:00:00]} e6 {[%emt 0:00:15]} 4. Nc3 {[%emt 0:01:27]} Nge7 {[%emt 0:04:13]} 5. d4 {[%emt 0:00:58]} cxd4 {[%emt 0:01:02]} 6. Nxd4 {[%emt 0:00:09]} Qc7 {[%emt 0:02:28]} 7. O-O {[%emt 0:01:46]} a6 {[%emt 0:01:06]} 8. Bxc6 {[%emt 0:00:34]} Nxc6 {[%emt 0:00:14]} 9. Nxc6 {[%emt 0:01:29]} Qxc6 {[%emt 0:01:43]} 10. Qg4 {[%emt 0:09:50]} b5 {[%emt 0:04:05]} 11. Re1 {[%emt 0:02:22]} Bb7 {[%emt 0:11:02]} 12. Bf4 {[%emt 0:06:28]} h5 {[%emt 0:07:12]} 13. Qg5 {[%emt 0:11:07]} Qc5 {[%emt 0:37:28]} 14. Nd5 {[%emt 0:16:03]} Bxd5 {[%emt 0:06:33]} 15. exd5 {[%emt 0:01:09]} Bd6 {[%emt 0:15:15]} 16. Bxd6 {[%emt 0:01:31]} Qxd6 {[%emt 0:00:05]} 17. dxe6 {[%emt 0:00:13]} fxe6 {[%emt 0:00:39]} 18. Qg6+ {[%emt 0:00:51]} Kf8 {[%emt 0:01:51]} 19. Rad1 {[%emt 0:02:59]} Qe7 {[%emt 0:01:17]} 20. Re3 {[%emt 0:00:17]} Rh6 {[%emt 0:00:27]} 21. Qe4 {[%emt 0:00:28]} Rd8 {[%emt 0:02:00]} 22. Qb7 {[%emt 0:01:34]} e5 {[%emt 0:00:44]} 23. Qd5 {[%emt 0:02:05]} Re6 {[%emt 0:00:51]} 24. Rf3+ {[%emt 0:00:54]} Kg8 {[%emt 0:00:27]} 25. Rf5 {[%emt 0:00:42]} g6 {[%emt 0:00:59]} 26. Rxe5 {[%emt 0:00:25]} Re8 {[%emt 0:00:06]} 27. Rxe6 {[%emt 0:00:51]} Qxe6 {[%emt 0:00:54]} 28. Kf1 {[%emt 0:00:22]} Rc8 {[%emt 0:00:32]} 29. c3 {[%emt 0:00:29]} Rc6 {[%emt 0:00:30]} 30. Qxd7 {[%emt 0:01:02]} Qc4+ {[%emt 0:00:28]} 31. Qd3 {[%emt 0:00:43]} Qe6 {[%emt 0:00:32]} 32. Qd8+ {[%emt 0:02:46]} Kg7 {[%emt 0:00:29]} 33. Rd7+ {[%emt 0:01:32]} Kh6 {[%emt 0:00:13]} 34. Qf8+ {[%emt 0:00:30]} Kg5 {[%emt 0:00:12]} 35. h4+ {[%emt 0:00:14]} Kxh4 {[%emt 0:00:25]} 36. Rd4+ {[%emt 0:00:11]} 1-0